Workbook

Sheet 1_STRAN REGIJSKO
A3: SD LOTRIČ ŽELEZNIKI
B20: REGIJSKO PRVENSTVO
B21: 2005
B22: ŽELEZNIKI, 12. IN 13.2.2005

Sheet 1_STRAN LIGE
A3: SD LOTRIČ ŽELEZNIKI
B19: 5. KOLO
B20: DRŽAVNA LIGA
B21: ŽELEZNIKI, 12. IN 13.2.2005

Sheet REGIJSKO PRVENSTVO čLANI

Sheet REG PRV ML ž VSE
A1: REGIJSKO PRVENSTVO ZA MLADINKE - PUŠKA
A3: POSAMEZNO
A5: UVR. | B5: PRIIMEK IN IME | C5: EKIPA | D5: Št.št. | E5: 1. | F5: 2. | G5: 3. | H5: 4. | I5: SKUP.
A6: 1 | B6: Repič Kaja | C6: KAMNIK | D6: 183 | E6: 95 | F6: 95 | G6: 95 | H6: 92 | I6: 377

Sheet REG PRV MLML VSI
A1: REGIJSKO PRVENSTVO ZA MLAJŠE MLADINCE - PUŠKA | K1: REGIJSKO PRVENSTVO ZA MLAJŠE MLADINCE - PUŠKA
A3: POSAMEZNO | K3: EKIPNO
A5: UVR. | B5: PRIIMEK IN IME | C5: EKIPA | D5: Št.št. | E5: 1. | F5: 2. | G5: 3. | H5: 4. | I5: SKUP. | K5: UVR. | L5: EKIPA | M5: SKUP. | N5: TEKMOVALCI
A6: 1 | B6: Travnik Primož | C6: PREDOSLJE | D6: 202 | E6: 89 | F6: 83 | G6: 82 | H6: 84 | I6: 338 | K6: 1 | L6: PREDOSLJE | M6: 916 | N6: Travnik Primož | O6: 338 | P6: Kerč Rok | Q6: 308 | R6: Suljič Alen | S6: 270
A7: 2 | B7: Zver Iztok | C7: KAMNIK | D7: 188 | E7: 87 | F7: 87 | G7: 83 | H7: 79 | I7: 336
A8: 3 | B8: Zore Žiga | C8: KAMNIK | D8: 190 | E8: 84 | F8: 75 | G8: 84 | H8: 90 | I8: 333
A9: 4 | B9: Kerč Rok | C9: PREDOSLJE | D9: 203 | E9: 78 | F9: 65 | G9: 80 | H9: 85 | I9: 308
A10: 5 | B10: Boroš Miha | C10: TRZIN | D10: 151 | E10: 71 | F10: 61 | G10: 78 | H10: 72 | I10: 282
A11: 6 | B11: Suljič Alen | C11: PREDOSLJE | D11: 204 | E11: 70 | F11: 64 | G11: 61 | H11: 75 | I11: 270
A15: REGIJSKO PRVENSTVO ZA MLAJŠE MLADINCE - PIŠTOLA | K15: REGIJSKO PRVENSTVO ZA MLAJŠE MLADINCE - PIŠTOLA
A17: POSAMEZNO | K17: EKIPNO
A19: UVR. | B19: PRIIMEK IN IME | C19: EKIPA | D19: Št.št. | E19: 1. | F19: 2. | G19: 3. | H19: 4. | I19: SKUP. | K19: UVR. | L19: EKIPA | M19: SKUP. | N19: TEKMOVALCI
A20: 1 | B20: Božič Gašper | C20: GORENJA VAS | D20: 218 | E20: 92 | F20: 86 | G20: 90 | H20: 92 | I20: 360 | K20: 1 | L20: GORENJA VAS | M20: 1002 | N20: Petrovič Vedran | O20: 315 | P20: Božič Gašper | Q20: 360 | R20: Jeram Tomaž | S20: 327
A21: 2 | B21: Kne Tadej | C21: KRANJ | D21: 231 | E21: 87 | F21: 85 | G21: 84 | H21: 83 | I21: 339
A22: 3 | B22: Jeram Tomaž | C22: GORENJA VAS | D22: 217 | E22: 87 | F22: 81 | G22: 73 | H22: 86 | I22: 327
A23: 4 | B23: Grbanovič Davor | C23: ŠKOFJA LOKA | D23: 182 | E23: 81 | F23: 80 | G23: 82 | H23: 74 | I23: 317
A24: 5 | B24: Logar Žiga | C24: LOTRIČ ŽELEZNIKI | D24: 216 | E24: 78 | F24: 83 | G24: 79 | H24: 76 | I24: 316
A25: 6 | B25: Petrovič Vedran | C25: GORENJA VAS | D25: 219 | E25: 70 | F25: 73 | G25: 87 | H25: 85 | I25: 315
A26: 7 | B26: Golob Andrej | C26: TRZIN | D26: 150 | E26: 81 | F26: 74 | G26: 74 | H26: 78 | I26: 307
A30: REGIJSKO PRVENSTVO ZA MLAJŠE MLADINKE - PUŠKA | K30: REGIJSKO PRVENSTVO ZA MLAJŠE MLADINKE - PUŠKA
A32: POSAMEZNO | K32: EKIPNO
A34: UVR. | B34: PRIIMEK IN IME | C34: EKIPA | D34: Št.št. | E34: 1. | F34: 2. | G34: 3. | H34: 4. | I34: SKUP. | K34: UVR. | L34: EKIPA | M34: SKUP. | N34: TEKMOVALCI
A35: 1 | B35: Lekše Katja | C35: RADOVLJICA | D35: 197 | E35: 95 | F35: 96 | G35: 98 | H35: 94 | I35: 383 | K35: 1 | L35: RADOVLJICA | M35: 1146 | N35: Mitrič Snežana | O35: 383 | P35: Šarič Selma | Q35: 380 | R35: Lekše Katja | S35: 383
A36: 2 | B36: Mitrič Snežana | C36: RADOVLJICA | D36: 199 | E36: 97 | F36: 97 | G36: 97 | H36: 92 | I36: 383
A37: 3 | B37: Šarič Selma | C37: RADOVLJICA | D37: 198 | E37: 94 | F37: 96 | G37: 97 | H37: 93 | I37: 380
A38: 4 | B38: Benedičič Nina | C38: LOTRIČ ŽLEZNIKI | D38: 168 | E38: 81 | F38: 91 | G38: 89 | H38: 85 | I38: 346
A39: 5 | B39: Hodnik Ajda | C39: PREDOSLJE | D39: 205 | E39: 73 | F39: 68 | G39: 81 | H39: 60 | I39: 282
A43: REGIJSKO PRVENSTVO ZA MLAJŠE MLADINKE - PIŠTOLA | K43: REGIJSKO PRVENSTVO ZA MLAJŠE MLADINKE - PIŠTOLA
A45: POSAMEZNO | K45: EKIPNO
A47: UVR. | B47: PRIIMEK IN IME | C47: EKIPA | D47: Št.št. | E47: 1. | F47: 2. | G47: 3. | H47: 4. | I47: SKUP. | K47: UVR. | L47: EKIPA | M47: SKUP. | N47: TEKMOVALCI
A48: 1 | B48: Prelec Romana | C48: LOTRIČ ŽELEZNIKI | D48: 167 | E48: 88 | F48: 88 | G48: 90 | H48: 82 | I48: 348 | K48: 1 | L48: LOTRIČ ŽELEZNIKI | M48: 948 | N48: Prelec Romana | O48: 348 | P48: Božiček Simona | Q48: 325 | R48: Prah Aleksandra | S48: 275
A49: 2 | B49: Božiček Simona | C49: LOTRIČ ŽELEZNIKI | D49: 192 | E49: 84 | F49: 78 | G49: 84 | H49: 79 | I49: 325
A50: 3 | B50: Prah Aleksandra | C50: LOTRIČ ŽELEZNIKI | D50: 191 | E50: 65 | F50: 69 | G50: 69 | H50: 72 | I50: 275

Sheet REGIJSKO PRVENSTVO ML PU PI M
A1: REGIJSKO PRVENSTVO ZA MLADINCE - PUŠKA
A3: POSAMEZNO
A5: UVR. | B5: PRIIMEK IN IME | C5: EKIPA | D5: Št.št. | E5: 1. | F5: 2. | G5: 3. | H5: 4. | I5: 5. | J5: 6. | K5: SKUP.
A6: 1 | B6: Kovaljv Borut | C6: TRZIN | D6: 154 | E6: 91 | F6: 96 | G6: 97 | H6: 99 | I6: 94 | J6: 92 | K6: 569
A7: 2 | B7: Frelih Žiga | C7: KRANJ | D7: 230 | E7: 93 | F7: 94 | G7: 90 | H7: 94 | I7: 93 | J7: 94 | K7: 558
A8: 3 | B8: Ugovšek Grega | C8: KAMNIK | D8: 189 | E8: 98 | F8: 88 | G8: 93 | H8: 93 | I8: 91 | J8: 90 | K8: 553
A9: 4 | B9: Lavtar Blaž | C9: TRIGLAV JAVORNIK | D9: 166 | E9: 95 | F9: 100 | G9: 86 | H9: 92 | I9: 90 | J9: 89 | K9: 552
A10: 5 | B10: Šifrar Jure | C10: GORENJA VAS | D10: 227 | E10: 78 | F10: 81 | G10: 71 | H10: 92 | I10: 81 | J10: 89 | K10: 492
A11: 6 | B11: Pečnik Rok | C11: PREDOSLJE | D11: 206 | E11: 78 | F11: 81 | G11: 77 | H11: 81 | I11: 84 | J11: 73 | K11: 474
A12: 7 | B12: Avdulahi Beni | C12: LOTRIČ ŽELEZNIKI | D12: 157 | E12: 74 | F12: 84 | G12: 79 | H12: 76 | I12: 79 | J12: 66 | K12: 458
A16: REGIJSKO PRVENSTVO ZA MLADINCE - PIŠTOLA | M16: REGIJSKO PRVENSTVO ZA MLADINCE - PIŠTOLA
A18: POSAMEZNO | M18: EKIPNO
A20: UVR. | B20: PRIIMEK IN IME | C20: EKIPA | D20: Št.št. | E20: 1. | F20: 2. | G20: 3. | H20: 4. | I20: 5. | J20: 6. | K20: SKUP. | M20: UVR. | N20: EKIPA | O20: SKUP. | P20: TEKMOVALCI
A21: 1 | B21: Tomaševič Klemen | C21: LOTRIČ ŽELEZNIKI | D21: 101 | E21: 92 | F21: 96 | G21: 90 | H21: 90 | I21: 91 | J21: 88 | K21: 547 | M21: 1 | N21: ŽELEZNIKI | O21: 1563 | P21: TOMAŠEVIČ KLEMEN | Q21: 547 | R21: PURGAR DAMJAN | S21: 518 | T21: BENEDIČIČ JOŽE | U21: 498
A22: 2 | B22: Markelj Dušan | C22: ŠKOFJA LOKA | D22: 178 | E22: 90 | F22: 96 | G22: 84 | H22: 91 | I22: 91 | J22: 90 | K22: 542
A23: 3 | B23: Karlovšek Peter | C23: TRZIN | D23: 48 | E23: 91 | F23: 88 | G23: 89 | H23: 85 | I23: 90 | J23: 90 | K23: 533
A24: 4 | B24: Pustotnik Tadej | C24: DOMŽALE | D24: 16 | E24: 85 | F24: 84 | G24: 93 | H24: 91 | I24: 89 | J24: 87 | K24: 529
A25: 5 | B25: Zore Anže | C25: KAMNIK | D25: 184 | E25: 89 | F25: 87 | G25: 86 | H25: 84 | I25: 89 | J25: 93 | K25: 528
A26: 6 | B26: Erman Matjaž | C26: TRIGLAV JAVORNIK | D26: 164 | E26: 89 | F26: 87 | G26: 87 | H26: 81 | I26: 86 | J26: 88 | K26: 518
A27: 7 | B27: Purgar Damjan | C27: LOTRIČ ŽELEZNIKI | D27: 201 | E27: 87 | F27: 86 | G27: 86 | H27: 87 | I27: 85 | J27: 87 | K27: 518
A28: 8 | B28: Bernot Luka | C28: TRIGLAV JAVORNIK | D28: 165 | E28: 84 | F28: 86 | G28: 75 | H28: 86 | I28: 87 | J28: 88 | K28: 506
A29: 9 | B29: Kolar Tomaž | C29: GORENJA VAS | D29: 226 | E29: 85 | F29: 79 | G29: 85 | H29: 83 | I29: 83 | J29: 87 | K29: 502
A30: 10 | B30: Benedičič Jože | C30: LOTRIČ ŽELEZNIKI | D30: 232 | E30: 83 | F30: 86 | G30: 84 | H30: 87 | I30: 79 | J30: 79 | K30: 498
A31: 11 | B31: Kosmač Denis | C31: TRZIN | D31: 156 | E31: 80 | F31: 81 | G31: 87 | H31: 73 | I31: 86 | J31: 87 | K31: 494

Sheet NASLOVNICA
A3: SD LOTRIČ ŽELEZNIKI
B17: DRŽAVNO PRVENSTVO ZA
B18: ŠTUDENTE IN
B19: DIJAKE
B22: ŽELEZNIKI, 22.5.2011

Sheet POROČILO
A1: ŽELEZNIKI, 22.5.2011
A3: POROČILO
A4: Tekmovanje je potekalo, po pravilih ISSF in SZS, na 40. mestnem
A5: montažnem strelišču v Ljubljani.
A6: Najboljši so prejeli medalje.
A8: Uradnih pritožb ni bilo.
E11: Branko Košir, vodja tekmovanja
A13: FUNKCIONARJI NA DP ŠTUDENTE IN DIJAKE
A14: Vodja tekmovanja: | C14: Branko Košir
A15: Delegirani sodnik: | C15: Jožica Rant
A16: Delegat SZS: | C16: Jožica Rant
A17: Sodniki za oceno tarč: | C17: Branko Košir
C18: Jelenc Damjan
C19: Jože Frelih
C20: Jožica Rant
A21: Sodniki na liniji: | C21: Markelj Franci
C22: Šuštar Jani
C23: Medved Ksenija
C24: Prelec Tomaž
A25: Objava rezultatov: | C25: Prelec Romana
C26: Kaplja Nadja
C27: Markelj Vesna
A29: Žirija za pritožbe: | C29: Jožica Rant
C30: Branko Košir
C31: Jože Frelih
A34: SPONZORJI:
C41: KLJUČAVNIČARSTVO ŠMID LUDVIK ŽELEZNIKI
C43: NIKA ŠIV (IZDELAVA JAKEN)

Sheet REZULTATI
A1: DRŽAVNO PRVENSTVO - ŠTUDENTI PUŠKA
A2: POSAMEZNO
A3: UVR. | B3: PRIIMEK IN IME | C3: EKIPA | D3: st.m. | E3: 1. | F3: 2. | G3: 3. | H3: 4. | I3: 5. | J3: 6. | K3: SKUP.
A4: 1 | B4: Černi Mitja 1991 | C4: VSŠ NOVO MESTO | D4: 8 | E4: 99 | F4: 98 | G4: 98 | H4: 99 | I4: 96 | J4: 99 | K4: =SUM(E4:J4) -> 589
A5: 2 | B5: Potočnik Grega 1990 | C5: VŠ ZA LESARSTVO ŠK.LOKA | D5: 14 | E5: 99 | F5: 94 | G5: 99 | H5: 98 | I5: 99 | J5: 99 | K5: 588
A6: 3 | B6: Barič Matic 1988 | C6: FE | D6: 3 | E6: 96 | F6: 96 | G6: 96 | H6: 98 | I6: 98 | J6: 96 | K6: 580
A7: 4 | B7: Mohorko Uroš 1991 | C7: FERI | D7: 5 | E7: 94 | F7: 97 | G7: 98 | H7: 96 | I7: 97 | J7: 96 | K7: 578
A8: 5 | B8: Resman Luka 1990 | C8: TURISTICA | D8: 2 | E8: 96 | F8: 97 | G8: 93 | H8: 99 | I8: 98 | J8: 95 | K8: 578
A9: 6 | B9: Oblak Lenart 1991 | C9: Fakulteta za šport | D9: 23 | E9: 93 | F9: 97 | G9: 95 | H9: 95 | I9: 99 | J9: 98 | K9: 577
A10: 7 | B10: Bernot Gašper 1990 | C10: LUR | D10: 4 | E10: 94 | F10: 95 | G10: 98 | H10: 95 | I10: 97 | J10: 98 | K10: 577
A11: 8 | B11: Maučec Gregor 1983 | C11: F ZA NAROVOSLOVJE IN MATEMATIKO MB | D11: 7 | E11: 93 | F11: 100 | G11: 91 | H11: 96 | I11: 92 | J11: 97 | K11: 569
A12: 9 | B12: Oblak Gašper 1991 | C12: FS | D12: 19 | E12: 94 | F12: 94 | G12: 95 | H12: 94 | I12: 96 | J12: 96 | K12: 569
A13: 10 | B13: Verbančič Denis 1990 | C13: IC Piramida MB VSŠ | D13: 12 | E13: 95 | F13: 94 | G13: 96 | H13: 95 | I13: 93 | J13: 94 | K13: 567
A14: 11 | B14: Šuštar Jani 1990 | C14: FE | D14: 32 | E14: 88 | F14: 94 | G14: 97 | H14: 97 | I14: 95 | J14: 95 | K14: 566
A15: 12 | B15: Žižek Jernej 1988 | C15: FS | D15: 11 | E15: 97 | F15: 92 | G15: 93 | H15: 92 | I15: 95 | J15: 93 | K15: 562
A17: DRŽAVNO PRVENSTVO - ŠTUDENTKE PUŠKA
A18: POSAMEZNO
A19: UVR. | B19: PRIIMEK IN IME | C19: EKIPA | D19: st.m. | E19: 1. | F19: 2. | G19: 3. | H19: 4. | I19: 5. | J19: 6. | K19: UP.
A20: 1 | B20: Repič Kaja 1987 | C20: ŠC VELENJE | D20: 9 | E20: 99 | F20: 99 | G20: 95 | H20: 99 | K20: =SUM(E20:J20) -> 392
A21: 2 | B21: Majstorovič Jelica 1987 | C21: FKPV CELJE | D21: 2 | E21: 95 | F21: 97 | G21: 99 | H21: 98 | K21: =SUM(E21:J21) -> 389
A22: 3 | B22: Smodiš Petra 1987 | C22: EKONOMSKA FAKULTETA | D22: 6 | E22: 93 | F22: 95 | G22: 96 | H22: 95 | K22: =SUM(E22:J22) -> 379
A23: 4 | B23: Bitenc Polona 1986 | C23: FNM | D23: 11 | E23: 94 | F23: 97 | G23: 95 | H23: 93 | K23: =SUM(E23:J23) -> 379
K24: =SUM(E24:J24) -> 0
A25: DRŽAVNO PRVENSTVO - ŠTUDENTI PIŠTOLA
A26: POSAMEZNO
A27: UVR.
A28: 1 | B28: PRIIMEK IN IME | C28: EKIPA | D28: st.m. | E28: 1. | F28: 2. | G28: 3. | H28: 4. | I28: 5. | J28: 6. | K28: SKUP.
A29: 2 | B29: Kunšek Blaž | C29: Šolski center Celje | D29: 39 | E29: 91 | F29: 91 | G29: 94 | H29: 92 | I29: 95 | J29: 94 | K29: =SUM(E29:J29) -> 557
A30: 3 | B30: Tomaševič Klemen | C30: FAK. ZA UPRAVO | D30: 36 | E30: 94 | F30: 87 | G30: 94 | H30: 96 | I30: 92 | J30: 91 | K30: =SUM(E30:J30) -> 554
A31: 4 | B31: Habjan Žiga 1986 | C31: FKKT | D31: 25 | E31: 97 | F31: 92 | G31: 91 | H31: 90 | I31: 93 | J31: 89 | K31: =SUM(E31:J31) -> 552
B32: Hadžidaov Aleksander | C32: Fakulteta za računalništvo in informatiko | D32: 34 | E32: 89 | F32: 89 | G32: 92 | H32: 94 | I32: 91 | J32: 88 | K32: =SUM(E32:J32) -> 543
A33: DRŽAVNO PRVENSTVO - ŠTUDENTKE PIŠTOLA
A34: POSAMEZNO
A35: UVR.
A36: 1 | B36: PRIIMEK IN IME | C36: EKIPA | D36: st.m. | E36: 1. | F36: 2. | G36: 3. | H36: 4. | I36: 5. | J36: 6. | K36: SKUP.
A37: 2 | B37: Prelec Romana 1988 | C37: NTF | D37: 30 | E37: 90 | F37: 91 | G37: 88 | H37: 90 | K37: =SUM(E37:J37) -> 359
A38: 3 | B38: Levanič Mateja 1988 | C38: Fakulteta za upravo | D38: 26 | E38: 88 | F38: 82 | G38: 88 | H38: 93 | K38: =SUM(E38:J38) -> 351
A39: 4 | B39: Lazar Mojca 1988 | C39: Medicinska fakulteta | D39: 27 | E39: 91 | F39: 88 | G39: 89 | H39: 80 | K39: 348
A49: DRŽAVNO PRVENSTVO - DIJAKI PUŠKA
A50: POSAMEZNO
A51: UVR.
B52: PRIIMEK IN IME | C52: EKIPA | D52: st.m. | E52: 1. | F52: 2. | G52: 3. | H52: 4. | I52: 5. | J52: 6. | K52: SKUP.
A53: 1 | B53: Peternelj Andrej 1991 | C53: TŠC Kranj | D53: 21 | E53: 97 | F53: 93 | G53: 97 | H53: 98 | I53: 100 | J53: 95 | K53: =SUM(E53:J53) -> 580
A54: 2 | B54: Presterel Anže 1994 | C54: SŠ za strojništvo Šk.Loka | D54: 6 | E54: 97 | F54: 97 | G54: 95 | H54: 98 | I54: 93 | J54: 98 | K54: 578
A55: 3 | B55: Požar Karim 1994 | C55: Gimnazija Giannasio Gian Rinaldo Carli | D55: 17 | E55: 96 | F55: 97 | G55: 93 | H55: 97 | I55: 97 | J55: 95 | K55: 575
A56: 4 | B56: Štojs Tadej 1995 | C56: Gimnazija Jesenice | D56: 10 | E56: 98 | F56: 96 | G56: 94 | H56: 97 | I56: 94 | J56: 95 | K56: 574 | M56: DRŽAVNO PRVENSTVO - DIJAKI PUŠKA
A57: 5 | B57: Šumak Jan 1993 | C57: Gimnazija Ormož | D57: 9 | E57: 96 | F57: 96 | G57: 97 | H57: 96 | I57: 95 | J57: 94 | K57: 574 | M57: EKIPNO
A58: 6 | B58: Žalik Tadej 1994 | C58: Dvjezična SŠ Lendava | D58: 1 | E58: 94 | F58: 96 | G58: 97 | H58: 89 | I58: 95 | J58: 95 | K58: 566 | M58: UVR. | N58: EKIPA | O58: SKUP. | P58: TEKMOVALCI
A59: 7 | B59: Tomažin Anže 1992 | C59: TŠC Kranj | D59: 22 | E59: 95 | F59: 95 | G59: 96 | H59: 94 | I59: 91 | J59: 92 | K59: 563 | M59: 1 | N59: TŠC Kranj | O59: =+Q59+S59+U59 -> 1644 | P59: Peternel Andrej | Q59: 580 | R59: Tomažin Anže | S59: 563 | T59: Dragičevič Žan | U59: 501
A60: 8 | B60: Tripar Teo 1992 | C60: Srednja šola Pietro Coppo | D60: 16 | E60: 93 | F60: 96 | G60: 91 | H60: 91 | I60: 91 | J60: 98 | K60: 560
A61: 9 | B61: Pernat Aleš 1995 | C61: Srednja Elektro računalniška šola | D61: 15 | E61: 99 | F61: 82 | G61: 95 | H61: 94 | I61: 95 | J61: 90 | K61: 555
A62: 10 | B62: Lampreht Bojan 1993 | C62: Ekonomska šola Ljubljana | D62: 18 | E62: 91 | F62: 90 | G62: 94 | H62: 91 | I62: 87 | J62: 94 | K62: 547
A63: 11 | B63: Mirtelj Alen 1995 | C63: SŠSDL Celje | D63: 13 | E63: 91 | F63: 88 | G63: 84 | H63: 86 | I63: 89 | J63: 87 | K63: 525
A64: 12 | B64: Dragičevič Žan 1994 | C64: TŠC Kranj | D64: 24 | E64: 88 | F64: 85 | G64: 79 | H64: 83 | I64: 87 | J64: 79 | K64: 501
A65: 13 | B65: Vodenik Žiga 1995 | C65: ??? | D65: 20 | E65: 81 | F65: 79 | G65: 77 | H65: 82 | I65: 85 | J65: 83 | K65: 487
A66: DRŽAVNO PRVENSTVO - DIJAKINJE PUŠKA
A67: POSAMEZNO
A68: UVR.
B69: PRIIMEK IN IME | C69: EKIPA | D69: st.m. | E69: 1. | F69: 2. | G69: 3. | H69: 4. | I69: 5. | J69: 6. | K69: SKUP.
A70: 1 | B70: Razboršek Teja 1993 | C70: SREDNJA EKONOMSKA ŠOLA MARIBOR | D70: 1 | E70: 98 | F70: 100 | G70: 96 | H70: 96 | K70: =SUM(E70:J70) -> 390
A71: 2 | B71: Mihalič Špela 1993 | C71: GIMNAZIJA MS | D71: 8 | E71: 96 | F71: 96 | G71: 99 | H71: 95 | K71: 386
A72: 3 | B72: Pavčnik Eva 1944 | C72: I. GIMNAZIJA CELJE | D72: 3 | E72: 95 | F72: 97 | G72: 92 | H72: 96 | K72: 380
A73: 4 | B73: Mulej Maruša 1995 | C73: SREDNJA OBLIKOVNA TEHNIČNA ŠOLA | D73: 5 | E73: 95 | F73: 94 | G73: 94 | H73: 96 | K73: 379 | M73: DRŽAVNO PRVENSTVO - DIJAKINJE PUŠKA
A74: 5 | B74: Vernik Petra 1994 | C74: GIMNAZIJA ORMOŽ | D74: 10 | E74: 94 | F74: 96 | G74: 92 | H74: 96 | K74: 378 | M74: EKIPNO
A75: 6 | B75: Stankovič Tanja 1993 | C75: ŠOLSKI CENTER NM | D75: 17 | E75: 95 | F75: 92 | G75: 95 | H75: 91 | K75: 373 | M75: UVR. | N75: EKIPA | O75: SKUP. | P75: TEKMOVALCI
A76: 7 | B76: Kastelic Ines 1994 | C76: GIMNAZIJA NOVO MESTO | D76: 16 | E76: 92 | F76: 93 | G76: 93 | H76: 92 | K76: 370 | M76: 1 | N76: GIMNAZIJA ORMOŽ | O76: =+Q76+S76+U76 -> 1025 | P76: Vernik Petra | Q76: 378 | R76: Kuharič Urška | S76: 355 | T76: Štefančič Nuša | U76: 292
A77: 8 | B77: Fojkar Tina 1993 | C77: GIMNAZIJA ESIC KRANJ | D77: 4 | E77: 89 | F77: 93 | G77: 92 | H77: 92 | K77: 366
A78: 9 | B78: Kuharič Urška 1994 | C78: GIMNAZIJA ORMOŽ | D78: 12 | E78: 93 | F78: 91 | G78: 85 | H78: 86 | K78: 355
A79: 10 | B79: Štefančič Nuša 1994 | C79: GIMNAZIJA ORMOŽ | D79: 14 | E79: 77 | F79: 73 | G79: 67 | H79: 75 | K79: 292
A80: DRŽAVNO PRVENSTVO - DIJAKI PIŠTOLA
A81: POSAMEZNO
A82: UVR.
A83: 1 | B83: PRIIMEK IN IME | C83: EKIPA | D83: st.m. | E83: 1. | F83: 2. | G83: 3. | H83: 4. | I83: 5. | J83: 6. | K83: SKUP.
A84: 2 | B84: Venta Kevin 1991 | C84: IC Piramida MB | D84: 40 | E84: 89 | F84: 94 | G84: 92 | H84: 97 | I84: 93 | J84: 97 | K84: =SUM(E84:J84) -> 562
A85: 3 | B85: Repič Rožle 1993 | C85: Srednja lesarska šola LJ | D85: 37 | E85: 93 | F85: 93 | G85: 94 | H85: 94 | I85: 91 | J85: 92 | K85: =SUM(E85:J85) -> 557
A86: 4 | B86: Šmid Jan 1995 | C86: Gimnazija Šk. Loka | D86: 38 | E86: 87 | F86: 83 | G86: 82 | H86: 88 | I86: 81 | J86: 84 | K86: =SUM(E86:J86) -> 505
A87: 5 | B87: Vrhunc Uroš 1995 | C87: ESIC Kranj | D87: 35 | E87: 87 | F87: 77 | G87: 76 | H87: 82 | I87: 81 | J87: 85 | K87: =SUM(E87:J87) -> 488
A88: DRŽAVNO PRVENSTVO - DIJAKINJE PIŠTOLA
A89: POSAMEZNO
A90: UVR.
A91: 1 | B91: PRIIMEK IN IME | C91: EKIPA | D91: st.m. | E91: 1. | F91: 2. | G91: 3. | H91: 4. | I91: 5. | J91: 6. | K91: SKUP.
A92: 2 | B92: Kovačič Anuša 1994 | C92: Šolski center NM | D92: 29 | E92: 89 | F92: 92 | G92: 92 | H92: 93 | K92: =SUM(E92:J92) -> 366
A93: 3 | B93: Vodeb Katja 1993 | C93: Srednja zdravstvena šola celje | D93: 31 | E93: 88 | F93: 89 | G93: 90 | H93: 91 | K93: =SUM(E93:J93) -> 358
A94: 4 | B94: Tomaševič Anja 1995 | C94: BTŠ Naklo | D94: 28 | E94: 83 | F94: 86 | G94: 93 | H94: 86 | K94: =SUM(E94:J94) -> 348
A95: 5 | B95: Novak Tina 1995 | C95: Srednja zdravstvena šola celje | D95: 33 | E95: 87 | F95: 86 | G95: 90 | H95: 85 | K95: =SUM(E95:J95) -> 348
